Cogmind - Beta 13 @@@ ROGUE MODE // 2024.08.04 @ 16:22:53 Player: polar Result: Destroyed by H-55 Commando with Gauss Rifle Performance ------------- Evolutions (0) 0 Regions Visited (3) 600 Robots Destroyed (29) 145 Value Destroyed (787) 787 Prototype IDs (24) 480 Alien Tech Used (0) 0 Bonus (340) 340 TOTAL SCORE: 2352 Bonus ------- Follower Combat Kills 40 Aligned with FarCom 300 Cogmind --------- Core Integrity 0/250 Matter 270/300 Energy 606/1600 System Corruption 0% Temperature Cool (85) Movement Core (700) Ox13 Location -10/Exiles Parts ------- > --- POWER (1) -------- (None) > --- PROPULSION (2) --- Compact Wheel > --- UTILITY (2) ------ Large Storage Unit Superbattery > --- WEAPON (2) ------- YOLO Cannon > --- INVENTORY (15) --- Ion Engine Light Treads Light Treads Wheel Huge Storage Unit ECM Suite Thief Drone Bay (3/3) Medium Laser Guided Plasma Cannon Assault Rifle Assault Rifle Grenade Launcher Peak State ------------ > --- POWER ------------ (None) > --- PROPULSION ------- Compact Wheel > --- UTILITY ---------- Large Storage Unit Superbattery > --- WEAPON ----------- YOLO Cannon > --- INVENTORY -------- Ion Engine Light Treads Light Treads Wheel Huge Storage Unit ECM Suite Thief Drone Bay Medium Laser Guided Plasma Cannon Assault Rifle Assault Rifle Grenade Launcher [Rating: 34] Favorites ----------- Power Ion Engine Engine Ion Engine Propulsion Light Treads Treads Light Treads Wheel Compact Wheel Utility Large Storage Unit Device Improved Heat Sink Storage Large Storage Unit Weapon Assault Rifle Energy Gun Medium Laser Energy Cannon YOLO Cannon Ballistic Gun Assault Rifle Build | -11 -10 -10 -10 ------- Run | Yrd Mat Min Exi Slots Evolved . | . . . . Power . | . . . . Propulsion . | . . . . Utility . | . . . . Weapon . | . . . . Parts Attached 19 | 8 1 5 5 Power 1 | 1 . . . Engine 1 | 1 . . . Core . | . . . . Reactor . | . . . . Propulsion 5 | 2 . 2 1 Treads 4 | 2 . 2 . Leg . | . . . . Wheel 1 | . . . 1 Hover . | . . . . Flight . | . . . . Utility 6 | 2 1 2 1 Device 3 | 1 . 2 . Storage 3 | 1 1 . 1 Processor . | . . . . Hackware . | . . . . Protection . | . . . . Artifact . | . . . . Weapon 7 | 3 . 1 3 Energy Gun 1 | . . 1 . Energy Cannon 2 | . . . 2 Ballistic Gun 4 | 3 . . 1 Ballistic Cannon . | . . . . Launcher . | . . . . Special Weapon . | . . . . Impact Weapon . | . . . . Slashing Weapon . | . . . . Piercing Weapon . | . . . . Special Melee Weapon . | . . . . Unidentified Prototypes 1 | . . 1 . Parts Lost 6 | . 1 1 4 Power 1 | . . . 1 Propulsion 2 | . . . 2 Utility 2 | . 1 . 1 Weapon 1 | . . 1 . Highest Loss Streak 4 | . 1 1 4 To Critical Strikes . | . . . . Average Slot Usage (%) 99 | . 98 99 99 Engine 13 | . 14 14 13 Treads 27 | . 28 28 27 Device 13 | . 12 13 13 Storage 14 | . 14 14 14 Energy Gun 9 | . . 12 13 Ballistic Gun 18 | . 28 15 13 Naked Turns . | . . . . Heaviest Build 33 | 15 30 33 30 Greatest Support 40 | 40 40 40 40 Greatest Overweight (x) 2 | 2 . . 1 Average Overweight (x) . | . . . . Largest Inventory Capacity 15 | 8 15 15 15 Average Capacity 14 | 7 13 15 15 Most Carried 15 | 6 15 15 15 Average Carried 13 | 3 11 14 14 Final Capacity 15 | 8 15 15 15 Final Carried 15 | 6 15 15 12 Class Distribution -------------------- 100% | Mutant Dominant Class ---------------- Mutant | -10/Materials Mutant | -10/Mines Mutant | -10/Exiles Resources | -11 -10 -10 -10 ----------- Run | Yrd Mat Min Exi Matter Collected 669 | 272 253 144 . Remotely . | . . . . Salvage Created 834 | 40 369 222 203 Parts 53 | 7 18 16 12 Haulers Intercepted . | . . . . Recyclers Shooed . | . . . . Parts Field Recycled . | . . . . Retrieved Matter . | . . . . Parts Self-Destructed . | . . . . Prevented . | . . . . Kills | -11 -10 -10 -10 ------- Run | Yrd Mat Min Exi Combat Hostiles Destroyed 25 | . 7 10 8 Guns 17 | . 7 10 . Cannons 3 | . . . 3 AOE 5 | . . . 5 Classes Destroyed 8 | 1 4 1 2 Tunneler 2 | 2 . . . Recycler 1 | . 1 . . Watcher 1 | . 1 . . Swarmer 11 | . 3 8 . Grunt 8 | . 4 1 3 Sentry 1 | . . 1 . Hunter 3 | . . . 3 Programmer 2 | . . . 2 Best Kill Streak 8 | 1 5 3 8 Combat Bots Only 8 | . 5 3 8 Max Kills in Single Turn 3 | 1 1 2 3 Gunslinging 1 | . . 1 . Exploded 3 | . . . 3 Melee . | . . . . Uniques/NPCs Destroyed . | . . . . Combat | -11 -10 -10 -10 -------- Run | Yrd Mat Min Exi Hostile Shots Fired 124 | . 43 34 47 Missed 37 | . 16 8 13 Damage Taken 1050 | . 343 263 444 Core 255 | . 57 32 166 Absorbed by Shields . | . . . . Core Remaining (%) 100 | 100 . . . Volleys Fired 72 | 7 33 26 6 Largest 2 | 2 2 2 1 Hottest 120 | 40 40 70 120 Shots Fired 138 | 14 66 52 6 Gun 132 | 14 66 52 . Cannon 6 | . . . 6 Launcher . | . . . . Special . | . . . . Kinetic 113 | 14 66 33 . Thermal 25 | . . 19 6 Explosive . | . . . . Electromagnetic . | . . . . Robot Hit Streak 7 | 5 7 6 5 Robot Miss Streak 4 | 3 4 4 1 Penetration Max . | . . . . Secondary Targets 1 | . . 1 . Max Gunslinging Chain 1 | . . 1 . Shots Hit Robots 86 | 8 42 33 3 Core Hits 41 | 3 15 14 9 Critical Kills . | . . . . Critical Parts Destroyed 1 | . 1 . . Critical Strikes 2 | . 1 1 . Burn 1 | . . 1 . Destroy 1 | . 1 . . Melee Attacks . | . . . . Impact . | . . . . Slashing . | . . . . Piercing . | . . . . Sneak Attacks . | . . . . Combat Hostiles . | . . . . Follow-up Attacks . | . . . . Damage Inflicted 2713 | 127 586 463 1537 Guns 1156 | 127 586 443 . Cannons 561 | . . . 561 Explosions 976 | . . . 976 Melee . | . . . . Ramming 20 | . . 20 . Kinetic 1039 | 127 586 326 . Thermal 1654 | . . 117 1537 Explosive . | . . . . Electromagnetic . | . . . . Impact . | . . . . Slashing . | . . . . Piercing . | . . . . Highest Corruption . | . . . . Average Corruption . | . . . . Corruption Purged . | . . . . Corruption Blocked . | . . . . Overload Shots . | . . . . Overflow Damage 124 | . . . 124 Projectiles 118 | . . . 118 Explosions 6 | . . . 6 Melee . | . . . . Knockbacks 1 | . . 1 . Impact 1 | . . 1 . Kinetic . | . . . . Secondary . | . . . . Self-Inflicted Damage . | . . . . Shots . | . . . . Rammed 2 | . . 2 . Targets Rammed 2 | . . 2 . Kicked . | . . . . Crushed . | . . . . Highest Temperature 168 | . 3 6 168 Average Temperature 48 | . 2 6 91 Received Heat Transfer 318 | . 171 69 78 Siege Activations . | . . . . Robots Corrupted . | . . . . Combat Hostiles . | . . . . Parts Fried . | . . . . Impact Corruptions . | . . . . Robots Melted . | . . . . Combat Hostiles . | . . . . Parts Melted 6 | . . 2 4 Heat Transferred 2007 | . . 407 1600 Parts Sabotaged . | . . . . Parts Stolen . | . . . . Parts Stripped . | . . . . Power Chain Reactions . | . . . . Alert | -11 -10 -10 -10 ------- Run | Yrd Mat Min Exi Peak Influence 391 | 10 219 391 . Initial 85 | . 6 85 . Average 126 | 3 57 178 . Maximum Alert Level 1 | . 1 1 . Low Security (%) 86 | 100 95 79 . Level 1 13 | . 4 20 . Level 2 . | . . . . Level 3 . | . . . . Level 4 . | . . . . Level 5 . | . . . . High Security . | . . . . Max Security . | . . . . Squads Dispatched 1 | . 1 . . Investigation . | . . . . Extermination . | . . . . Reinforcement 1 | . 1 . . Assault . | . . . . Garrison . | . . . . Intercept . | . . . . Searches Triggered . | . . . . Construction Impeded . | . . . . Haulers Reinforced . | . . . . Active Scanning Responses . | . . . . Cargo Convoy Interrupts . | . . . . Stealth | -11 -10 -10 -10 --------- Run | Yrd Mat Min Exi Distress Signals 1 | . 1 . . Communications Jammed . | . . . . Distress Signals . | . . . . Times Spotted 39 | . 14 13 12 Peak Tracking Total 10 | . 4 3 10 Tactical Retreats 2 | . . 2 . Traps | -11 -10 -10 -10 ------- Run | Yrd Mat Min Exi Traps Triggered . | . . . . Indirectly . | . . . . Trap Hack Attempts . | . . . . Triggered . | . . . . Disarmed . | . . . . Reprogrammed . | . . . . Reused . | . . . . Traps Extracted . | . . . . Installed . | . . . . Triggered . | . . . . Machines | -11 -10 -10 -10 ---------- Run | Yrd Mat Min Exi Machines Disabled 2 | . . 1 1 Max in Single Turn 1 | . . . 1 Machines Repaired . | . . . . Machines Dismantled . | . . . . Machines Sabotaged . | . . . . Overloaded Fab Kills . | . . . . Hacking | -11 -10 -10 -10 --------- Run | Yrd Mat Min Exi Machines Accessed 6 | . 3 1 2 Terminals 3 | . 3 . . Fabricators . | . . . . Repair Stations . | . . . . Recycling Units . | . . . . Scanalyzers . | . . . . Garrison Access . | . . . . Total Hacks 39 | . 14 1 24 Successful 33 | . 8 1 24 Failed 5 | . 5 . . Catastrophic 1 | . 1 . . Database Lockouts 1 | . 1 . . Manual 14 | . 13 . 1 Terminals 14 | . 14 . . Fabricators . | . . . . Repair Stations . | . . . . Recycling Units . | . . . . Scanalyzers . | . . . . Garrison Access . | . . . . Terminal Hacks 31 | . 6 1 24 Record 24 | . 1 . 23 Part Schematic 2 | . 2 . . Robot Analysis 3 | . 3 . . Open Door 1 | . . 1 . Derelict Proto ID Bank 1 | . . . 1 Fabricator Hacks . | . . . . Repair Station Hacks . | . . . . Recycling Unit Hacks . | . . . . Scanalyzer . | . . . . Garrison Access Hacks . | . . . . Unauthorized Hacks 2 | . 2 . . Terminals 2 | . 2 . . Botnet 2 | . 2 . . Fabricators . | . . . . Repair Stations . | . . . . Recycling Units . | . . . . Scanalyzers . | . . . . Garrison Access . | . . . . Data Cores Recovered . | . . . . Used . | . . . . Hacking Detections 3 | . 3 . . Full Trace Events . | . . . . Feedback Events . | . . . . Feedback Blocked . | . . . . Robot Schematics Acquired . | . . . . Robots Built . | . . . . Authchips . | . . . . Time . | . . . . Total Robot Build Rating . | . . . . Part Schematics Acquired 2 | . 2 . . Parts Built . | . . . . Authchips . | . . . . Time . | . . . . Total Part Build Rating . | . . . . Parts Repaired . | . . . . Time . | . . . . Parts Recycled . | . . . . Recycled Matter . | . . . . Retrieved Matter . | . . . . Retrieved Components . | . . . . Parts Scanalyzed . | . . . . Part Schematics Acquired . | . . . . Parts Damaged . | . . . . Bothacking | -11 -10 -10 -10 ------------ Run | Yrd Mat Min Exi Used RIF Installer . | . . . . Robots Hacked . | . . . . Non-combat . | . . . . Combat . | . . . . Robot Hacks Applied . | . . . . Relay Couplers Released . | . . . . Fabnet Peak Effective % . | . . . . Robots Rewired . | . . . . Allies Hacked . | . . . . Hacks Repelled . | . . . . Allies | -11 -10 -10 -10 -------- Run | Yrd Mat Min Exi Total Allies 1 | . . 1 . Largest Group 1 | . . 1 1 Highest-Rated Group 31 | . . 31 31 Highest-Rated Ally 31 | . . 31 31 Total Orders 1 | . . 1 . RETURN 1 | . . 1 . Ally Attacks 8 | . . 8 . Total Damage 136 | . . 136 . Kills 2 | . . 2 . Allies Corrupted . | . . . . Allies Melted . | . . . . Intel | -11 -10 -10 -10 ------- Run | Yrd Mat Min Exi Robot Analysis Total 3 | . 3 . . Derelict Logs Recovered 1 | . . 1 . Drone Launches 1 | . . 1 . Drone Recoveries 1 | . . 1 . Exploration | -11 -10 -10 -10 ------------- Run | Yrd Mat Min Exi Turns Passed 2732 | 93 678 1122 839 Spaces Moved 1491 | 41 340 621 489 Core 10 | 10 . . . Treads 1474 | 31 340 621 482 Legs . | . . . . Wheels 7 | . . . 7 Hover . | . . . . Flight . | . . . . Fastest Speed 50 | 50 160 160 115 Average Speed 159 | 138 160 160 159 Slowest Speed 160 | 160 160 160 160 Overloaded Moves . | . . . . Propulsion Burnouts . | . . . . Robots Hopped . | . . . . Cave-ins Triggered . | . . . . Exploration Rate (%) 53 | 3 57 99 56 Regions Visited 3 Branch Regions 2 Pre-discovered Areas 2 | . . 1 1 Known Exits Taken . | . . . . Unknown Exits Taken 3 | 1 1 1 . Scrap Searched 1 | . . 1 . Spaces Dug . | . . . . Terrain Destroyed 3 | . . . 3 Melee . | . . . . Projectile . | . . . . AOE 3 | . . . 3 Terrain Rammed . | . . . . Walls Destroyed . | . . . . Machines Disabled . | . . . . Actions | -11 -10 -10 -10 --------- Run | Yrd Mat Min Exi Total 1708 | 60 411 695 542 Wait 91 | . 24 40 27 Move 1488 | 40 339 620 489 Hop . | . . . . Pick Up 23 | 5 11 1 6 Fast Attach 8 | 7 . 1 . Attach 5 | . . 1 4 Detach 1 | . . . 1 Swap 6 | 1 1 3 1 Drop 12 | . 3 1 8 Fire 72 | 7 33 26 6 Melee . | . . . . Ram . | . . . . Kick . | . . . . Crush 2 | . . 2 . Escape Stasis . | . . . . Rewire . | . . . . Trap . | . . . . Miscellaneous . | . . . . Route ------- -11/Scrapyard -10/Materials (discovered 2 exits: [*Mat] / *Min) -10/Mines (discovered 3 exits: [*Mat x2] / *Exi) -10/Exiles (discovered 2 exits: *Min x2) History --------- Turn | Location | Event 10 | -11/Scrapyard | Discovered new exit (range 15) 94 | -11/Scrapyard | Entered Materials 278 | -10/Materials | Discovered new exit (range 16) 317 | -10/Materials | Build established: Mutant 375 | -10/Materials | Discovered new exit (range 15) 463 | -10/Materials | Central database locked down 772 | -10/Materials | Entered Mines 775 | -10/Mines | Found the Drone Emporium 785 | -10/Mines | Found Prototype Device 785 | -10/Mines | Identified Thief Drone Bay 1081 | -10/Mines | Escorted by a lone wolf Derelict 1101 | -10/Mines | Learned location of Storage (-9) 1107 | -10/Mines | Deemed a non-threat by the Exiles lab entrance 1109 | -10/Mines | Discovered new exit (range 5) 1409 | -10/Mines | Discovered new exit (range 14) 1691 | -10/Mines | Discovered new exit (range 8) 1894 | -10/Mines | Entered Exiles 1894 | -10/Exiles | Accompanied by 1 ally 1895 | -10/Exiles | Identified exit to Mines 1973 | -10/Exiles | Met 8R-AWN 2041 | -10/Exiles | Met EX-HEX 2097 | -10/Exiles | Met EX-BIN 2185 | -10/Exiles | Met EX-DEC 2210 | -10/Exiles | Learned location of Zion (-6) 2412 | -10/Exiles | Aligned with FarCom system 2413 | -10/Exiles | Given EX-Vault access code 2450 | -10/Exiles | Opened EX-Vault 2487 | -10/Exiles | Warned to stay clear of 0b10 Research branches 2515 | -10/Exiles | Exiles lab attacked by MAIN.C 2618 | -10/Exiles | Found Superbattery 2624 | -10/Exiles | Found Gui. Plasma Cannon 2635 | -10/Exiles | Found YOLO Cannon 2720 | -10/Exiles | Core integrity fell below 50% 2733 | -10/Exiles | Core integrity fell below 20% 2733 | -10/Exiles | Destroyed by H-55 Commando with Gauss Rifle Last Messages --------------- 02722_ Target Analyzer melted. 02722_ P-60 Hacker destroyed. 02722_ Lgt. Nuclear Core melted. 02722_ H-55 Commando destroyed. 02722_ Machine disabled. 02722_ Penetrated by Slug. 02722_ Ion Engine destroyed. 02726_ Ion Engine melted. 02726_ G-34 Mercenary destroyed. 02726_ Destroyed Lgt. Nuclear Core. 02726_ G-34 Mercenary destroyed. 02726_ Penetrated by Slug. 02726_ Slug penetrates Machine. 02726_ Machine disabled. 02726_ Imp. Heat Sink destroyed. 02729_ Slug penetrates Wall. 02731_ H-55 Commando destroyed. 02731_ Destroyed Sml. Laser. 02731_ G-34 Mercenary destroyed. 02732_ Penetrated by Slug. Map ----- +----------------------------------------------------+ | ???????????????????????# #???###?????????????? | | ???????????????????????# #??"""""????????????? | | ???????????????????????# ## """????????????? | | ???????????????????????# X""????????????? | | ???????????????????????# ## """????????????? | | ????????????????#####??# #??"""""????????????? | | ????????????????""""""?# #???###?????????????? | | ????????????????"""" ## #???????????????????? | | ???????????????#""X" #???????????????????? | | ???????????????#" #???????????????????? | | ???????????????#" ## #???????????????????? | | ???????????????#""""""?# #?#########?????????? | | ???????????????##"###??# #?#"""""""#?????????? | | ???????????????? ??????# #?#"""""""#?????????? | | ???????????????????????# #?#"""""""#?????????? | | ??????????????????????## ###"" """"#?????????? | | ??????????????????????#" """"#?????????? | | ??????????????????????#" """#?????????? | | ??????????????????????#" """#?????????? | | ??????????????????????#" """#?????????? | | ???????########???????#" """#?????????? | | ???????# """#???????# """#?????????? | | ???????#"" """#???????## """""????????? | | ???????#"" #????????# """#?????????? | | ???????#"" #????????# "X" """""????????? | | ???????#"" "#????????# @ """ #?????????? | | ???????# ""#????????# """""""""#?????????? | | ???????#"" ""#???????#; ###########?????????? | | ???????### ###??????#; #???????????????????? | | ###????### ###?#####; = #???????????????????? | | """#####X# #"###""" %! ####????????????????? | | """""" h = ""#???#####?##?????? | | "" """ = [h * "####"""""""""##??? | | % " =" % *=% " """ """"#??? | | [%! g = "" " ??? | | % = ]% g " """#?? | | % " "#?? | | # %= " "##? | | ##" % ""## | | ?#""" "" """ | | ?#" ######""" " | | #"" ""##????#####""" | | #""" """##?????????##""" | | """ """##???????????#"""" | | """ ""#???????????##"" | | "" ##?????????###"""" | | """ ????????#""" | | "" ??????""" | | #"" ? | | #"""" | +----------------------------------------------------+ Best States ------------- Heat Dissipation 39 Energy Generation 10 Energy Capacity 250 Matter Stores 300 Matter Capacity 300 Sight Range 16 Terrain Scan Density 10 Evasion (%) 50 Recoil Reduction 2 Item Schematics ----------------- Cargo Storage Unit | -10/Materials | Hacked Flight Unit | -10/Materials | Hacked Robot Schematics ------------------ None Fabricated ------------ Nothing Alien Tech Used ----------------- None Achievements -------------- None Challenges ------------ None Game ------ Seed SensorSubatomicLaser Manual? 0 Play Time 00:23:36 Cumulative 278.7 hours Start 2024.08.04 @ 15:56:39 End 2024.08.04 @ 16:22:53 Sessions 1 Manual Loads 0 Difficulty Rogue Special Mode None Game No. 104 Rogue 102 Adventurer 0 Explorer 2 Win Type - Total 7 Types 5/0/1/1/0/0/0/0/0 Lore% 81 Gallery% 83 Achievement% 71 Wizard Run 0 Options --------- Layout 2 ASCII 0 Keyboard 0 Movement Numpad Keybinds 0 Fullscreen 1 Font 24/Smallcaps Map View 50x44 Zoom Use 0% Tactical HUD 1 Map Filters NONE Filters NONE Steam 0 RUN: d17155b3-b1b7-4c0a-85b6-96ed794ed27b